Cogmind - Beta 16 @@@ ROGUE MODE // 2026.01.02 @ 15:03:56 Player: winnking222 Result: Destroyed by Z0-VDA(R) with Subdweller Machine Gun Performance ------------- Evolutions (0) 0 Regions Visited (2) 400 Robots Destroyed (33) 165 Value Destroyed (643) 643 Prototype IDs (0) 0 Alien Tech Used (0) 0 Bonus (0) 0 TOTAL SCORE: 1208 Bonus ------- None Cogmind --------- Core Integrity 0/250 Matter 277/300 Energy 250/250 System Corruption 0% Temperature Cool (0) Movement Treading (560) Ox4 Location -10/Subcaves Parts ------- > --- POWER (1) -------- Ion Engine > --- PROPULSION (2) --- Spiked Treads > --- UTILITY (2) ------ Huge Storage Unit > --- WEAPON (2) ------- Subdweller Laser Subdweller Machine Gun > --- INVENTORY (25) --- Ion Engine Subdweller Power Source Light Treads Aluminum Leg Subdweller Monowheel Flight Unit Flight Unit Flight Unit Flight Unit Flight Unit Flight Unit Large Storage Unit Subdweller Optics Scrap Shield Beam Cannon Subdweller Beam Cannon Battle Rifle Battle Rifle Barrage Gun Battle Cannon Subdweller Shrapnel Launcher Makeshift Hammer Piercing Trap Peak State ------------ > --- POWER ------------ Ion Engine > --- PROPULSION ------- Light Treads Subdweller Monowheel > --- UTILITY ---------- Huge Storage Unit > --- WEAPON ----------- Battle Rifle Battle Rifle > --- INVENTORY -------- Subdweller Power Source Spiked Treads Aluminum Leg Wheel Subdweller Monowheel Flight Unit Flight Unit Flight Unit Flight Unit Flight Unit Large Storage Unit Subdweller Optics Scrap Shield Subdweller Laser Beam Cannon Subdweller Beam Cannon Subdweller Beam Cannon Subdweller Machine Gun Barrage Gun Battle Cannon Subdweller Shrapnel Launcher Makeshift Hammer Piercing Trap [Rating: 13] Favorites ----------- Power Ion Engine Engine Ion Engine Propulsion Light Treads Treads Light Treads Leg Aluminum Leg Wheel Wheel Utility Huge Storage Unit Device Seismic Detector Storage Huge Storage Unit Weapon Battle Rifle Energy Gun Medium Laser Energy Cannon Subdweller Beam Cannon Ballistic Gun Battle Rifle Build | -11 -10 -10 ------- Run | Yrd Mat Sub Slots Evolved . | . . . Power . | . . . Propulsion . | . . . Utility . | . . . Weapon . | . . . Parts Attached 32 | 8 7 17 Power 5 | 1 2 2 Engine 5 | 1 2 2 Core . | . . . Reactor . | . . . Propulsion 10 | 2 2 6 Treads 4 | 2 . 2 Leg 3 | . 2 1 Wheel 3 | . . 3 Hover . | . . . Flight . | . . . Utility 4 | 2 1 1 Device 1 | 1 . . Storage 3 | 1 1 1 Processor . | . . . Hackware . | . . . Protection . | . . . Artifact . | . . . Weapon 13 | 3 2 8 Energy Gun 4 | 2 1 1 Energy Cannon 4 | . . 4 Ballistic Gun 5 | 1 1 3 Ballistic Cannon . | . . . Launcher . | . . . Special Weapon . | . . . Impact Weapon . | . . . Slashing Weapon . | . . . Piercing Weapon . | . . . Special Melee Weapon . | . . . Unidentified Prototypes . | . . . Parts Lost 8 | . 4 4 Power 1 | . 1 . Propulsion 4 | . 1 3 Utility 1 | . 1 . Weapon 2 | . 1 1 Highest Loss Streak 2 | . 2 2 To Critical Strikes 1 | . . 1 Average Backups 16 | 4 10 20 Power 1 | . 1 1 Propulsion 7 | 2 6 8 Utility 1 | . . 2 Weapon 5 | 1 2 7 Tool/Special . | . . . Unused Backups 21 | . 3 18 Power 3 | . 1 2 Propulsion 9 | . 2 7 Utility 2 | . . 2 Weapon 7 | . . 7 Tool/Special . | . . . Average Slot Usage (%) 86 | . 91 84 Engine 13 | . 13 14 Treads 15 | . 22 12 Leg 3 | . 4 2 Wheel 7 | . . 12 Device 2 | . 6 . Storage 14 | . 14 14 Energy Gun 9 | . 14 6 Energy Cannon 7 | . . 11 Ballistic Gun 11 | . 13 10 Peak Build Rating 13 | 7 7 13 Average Rating 9 | 5 6 11 On Entrance 4 | . 7 7 Avg Prop Armor Cover (%) 14 | . . 14 Naked Turns . | . . . Heaviest Build 96 | 12 29 96 Greatest Support 40 | 40 40 20 Greatest Overweight (x) 9 | . 1 9 Average Overweight (x) 4 | . . 7 Largest Inventory Capacity 25 | 8 15 25 Average Capacity 19 | 7 12 23 Most Carried 25 | 7 15 25 Average Carried 18 | 4 10 22 Final Capacity 25 | 8 15 25 Final Carried 24 | 6 15 24 Class Distribution -------------------- 100% | Mutant Dominant Class ---------------- Mutant | -10/Materials Mutant | -10/Subcaves Resources | -11 -10 -10 ----------- Run | Yrd Mat Sub Matter Collected 633 | 289 107 237 Remotely . | . . . Salvage Created 931 | 144 568 219 Parts 68 | 19 38 11 Haulers Intercepted 1 | . 1 . Recyclers Shooed . | . . . Parts Field Recycled . | . . . Retrieved Matter . | . . . Parts Self-Destructed 7 | . . 7 Prevented . | . . . Parts Restored . | . . . Kills | -11 -10 -10 ------- Run | Yrd Mat Sub Combat Hostiles Destroyed 24 | . 14 10 Guns 20 | . 14 6 Cannons 3 | . . 3 Classes Destroyed 8 | 2 5 1 Worker 1 | . 1 . Tunneler 3 | 3 . . Hauler 1 | . 1 . Recycler 1 | 1 . . Watcher 3 | . 3 . Swarmer 12 | . 6 6 Grunt 8 | . 8 . Subdweller 4 | . . 4 Best Kill Streak 6 | 2 6 3 Combat Bots Only 4 | . 4 3 Max Kills in Single Turn 2 | 1 2 2 Gunslinging 1 | . 1 1 Exploded . | . . . Melee . | . . . Uniques/NPCs Destroyed . | . . . Combat | -11 -10 -10 -------- Run | Yrd Mat Sub Hostile Shots Fired 181 | . 87 94 Missed 46 | . 19 27 Hits 135 | . 68 67 Projectile 135 | . 68 67 Critical Strikes 3 | . 1 2 Damage Taken 1482 | . 747 735 Core 263 | . 96 167 Absorbed by Shields . | . . . Core Remaining (%) 100 | 100 . . Volleys Fired 125 | 9 55 61 Largest 2 | 2 2 2 Hottest 140 | 60 70 140 Shots Fired 227 | 18 109 100 Gun 181 | 18 109 54 Cannon 46 | . . 46 Launcher . | . . . Special . | . . . Kinetic 91 | 9 55 27 Thermal 115 | . 42 73 Explosive . | . . . Electromagnetic 21 | 9 12 . Robot Hit Streak 15 | 3 5 15 Robot Miss Streak 3 | 3 3 3 Penetration Max . | . . . Secondary Targets 3 | . 2 1 Max Gunslinging Chain 1 | . 1 1 Shots Hit Robots 115 | 8 60 47 Core Hits 52 | 7 34 11 Critical Kills 1 | . . 1 Critical Parts Destroyed . | . . . Critical Strikes 3 | . 1 2 Burn 2 | . 1 1 Meltdown 1 | . . 1 Melee Attacks . | . . . Impact . | . . . Slashing . | . . . Piercing . | . . . Sneak Attacks . | . . . Combat Hostiles . | . . . Follow-up Attacks . | . . . Damage Inflicted 1668 | 84 763 821 Guns 1246 | 84 726 436 Cannons 385 | . . 385 Explosions 32 | . 32 . Melee . | . . . Ramming 5 | . 5 . Kinetic 520 | 32 284 204 Thermal 977 | . 360 617 Explosive . | . . . Electromagnetic 166 | 52 114 . Impact . | . . . Slashing . | . . . Piercing . | . . . Highest Corruption . | . . . Average Corruption . | . . . Corruption Purged . | . . . Corruption Blocked . | . . . Overload Shots . | . . . Overflow Damage . | . . . Projectiles . | . . . Explosions . | . . . Melee . | . . . Knockbacks . | . . . Impact . | . . . Kinetic . | . . . Secondary . | . . . Self-Inflicted Damage . | . . . Shots . | . . . Rammed 2 | . 2 . Targets Rammed 2 | . 2 . Kicked . | . . . Crushed . | . . . Highest Temperature 204 | 40 204 36 Average Temperature 37 | 17 47 13 Received Heat Transfer 381 | . 345 36 Siege Activations . | . . . Martial Activations . | . . . Shielding Activations . | . . . Robots Disrupted . | . . . Combat Hostiles . | . . . Robots Corrupted . | . . . Combat Hostiles . | . . . Parts Fried . | . . . Impact Corruptions . | . . . Robots Melted 1 | . . 1 Combat Hostiles 1 | . . 1 Parts Melted 4 | . 1 3 Heat Transferred 2272 | . 1086 1186 Parts Sabotaged . | . . . Parts Stolen . | . . . Parts Stripped . | . . . Power Chain Reactions 1 | . 1 . Alert | -11 -10 -10 ------- Run | Yrd Mat Sub Maximum Alert Level . | . . . Low Security (%) 100 | 100 100 . Level 1 . | . . . Level 2 . | . . . Level 3 . | . . . Level 4 . | . . . Level 5 . | . . . High Security . | . . . Max Security . | . . . Peak Influence 148 | 10 148 . Initial . | . . . Average 52 | 1 57 . Influence Increases 614 | 20 434 160 Destroy 0b10 Robot/C 400 | . 280 120 Destroy 0b10 Robot/NC 45 | 20 25 . Destroy Leader 88 | . 78 10 Successful Hack 18 | . 18 . Destroy Structure 3 | . 3 . Lose Combat Pursuer 60 | . 30 30 Influence Decreases 614 | 20 370 224 Entered New Map 32 | . . 32 Time Decay 532 | 20 330 182 Lost Part 50 | . 40 10 Squads Dispatched 5 | . 5 . Investigation 4 | . 4 . Extermination . | . . . Reinforcement 1 | . 1 . Assault . | . . . Garrison . | . . . Intercept . | . . . Searches Triggered . | . . . Construction Impeded . | . . . Haulers Reinforced . | . . . Active Scanning Responses . | . . . Cargo Convoy Interrupts . | . . . Stealth | -11 -10 -10 --------- Run | Yrd Mat Sub Distress Signals 2 | . 2 . Communications Jammed . | . . . Distress Signals . | . . . Times Spotted 38 | . 25 13 Peak Tracking Total 6 | . 6 4 Tactical Retreats 2 | . 1 1 Traps | -11 -10 -10 ------- Run | Yrd Mat Sub Traps Triggered 2 | . 2 . Indirectly . | . . . Trap Hack Attempts . | . . . Triggered . | . . . Disarmed . | . . . Reprogrammed . | . . . Reused . | . . . Traps Extracted . | . . . Installed . | . . . Triggered . | . . . Most Traps Carried 1 | . . 1 Machines | -11 -10 -10 ---------- Run | Yrd Mat Sub Machines Disabled . | . . . Max in Single Turn . | . . . Machines Repaired . | . . . Machines Dismantled . | . . . Machines Sabotaged . | . . . Overloaded Fab Kills . | . . . Hacking | -11 -10 -10 --------- Run | Yrd Mat Sub Machines Accessed 8 | . 8 . Terminals 8 | . 8 . Fabricators . | . . . Repair Stations . | . . . Recycling Units . | . . . Scanalyzers . | . . . Garrison Access . | . . . Total Hacks 20 | . 20 . Successful 12 | . 12 . Failed 8 | . 8 . Catastrophic . | . . . Database Lockouts . | . . . Manual 18 | . 18 . Terminals 20 | . 20 . Fabricators . | . . . Repair Stations . | . . . Recycling Units . | . . . Scanalyzers . | . . . Garrison Access . | . . . Terminal Hacks 2 | . 2 . Part Schematic 1 | . 1 . Locate Traps 1 | . 1 . Fabricator Hacks . | . . . Repair Station Hacks . | . . . Recycling Unit Hacks . | . . . Scanalyzer . | . . . Garrison Access Hacks . | . . . Unauthorized Hacks 10 | . 10 . Terminals 10 | . 10 . Botnet 4 | . 4 . Skim 6 | . 6 . Fabricators . | . . . Repair Stations . | . . . Recycling Units . | . . . Scanalyzers . | . . . Garrison Access . | . . . Data Cores Recovered . | . . . Used . | . . . Hacking Detections 7 | . 7 . Full Trace Events 1 | . 1 . Feedback Events . | . . . Feedback Blocked . | . . . Robot Schematics Acquired . | . . . Robots Built . | . . . Authchips . | . . . Time . | . . . Total Robot Build Rating . | . . . Part Schematics Acquired 1 | . 1 . Parts Built . | . . . Authchips . | . . . Time . | . . . Total Part Build Rating . | . . . Part Studies Acquired . | . . . Parts Repaired . | . . . Time . | . . . Parts Recycled . | . . . Recycled Matter . | . . . Retrieved Matter . | . . . Retrieved Components . | . . . Parts Scanalyzed . | . . . Part Schematics Acquired . | . . . Parts Damaged . | . . . Bothacking | -11 -10 -10 ------------ Run | Yrd Mat Sub Used RIF Installer . | . . . Robots Hacked . | . . . Non-combat . | . . . Combat . | . . . Robot Hacks Applied . | . . . Relay Couplers Released . | . . . Fabnet Peak Effective % . | . . . Robots Rewired . | . . . Allies Hacked . | . . . Hacks Repelled . | . . . Allies | -11 -10 -10 -------- Run | Yrd Mat Sub Total Allies . | . . . Largest Group . | . . . Highest-Rated Group . | . . . Highest-Rated Ally . | . . . Total Orders . | . . . Ally Attacks . | . . . Total Damage . | . . . Kills . | . . . Allies Corrupted . | . . . Allies Melted . | . . . Intel | -11 -10 -10 ------- Run | Yrd Mat Sub Active Infowar (turns) 577 | 37 540 . Seismic 577 | 37 540 . Robot Analysis Total . | . . . Derelict Logs Recovered 2 | . . 2 Drone Launches . | . . . Drone Recoveries . | . . . Exploration | -11 -10 -10 ------------- Run | Yrd Mat Sub Turns Passed 3576 | 127 1181 2268 Spaces Moved 1605 | 55 561 989 Core 6 | 6 . . Treads 511 | 49 460 2 Legs 184 | . 101 83 Wheels 904 | . . 904 Hover . | . . . Flight . | . . . Fastest Speed 50 | 50 160 150 Average Speed 189 | 148 167 204 Slowest Speed 560 | 160 240 560 Overloaded Moves . | . . . Propulsion Burnouts . | . . . Robots Hopped . | . . . Potential Cave-ins . | . . . Cave-ins Triggered . | . . . Exploration Rate (%) 48 | 4 90 51 Regions Visited 2 Branch Regions 1 Pre-discovered Areas . | . . . Known Exits Taken 1 | . 1 . Unknown Exits Taken 1 | 1 . . Scrap Searched 11 | . . 11 Spaces Dug 9 | . . 9 Terrain Destroyed 12 | . 3 9 Melee . | . . . Projectile 9 | . . 9 AOE 3 | . 3 . Terrain Rammed . | . . . Walls Destroyed . | . . . Machines Disabled . | . . . Actions | -11 -10 -10 --------- Run | Yrd Mat Sub Total 1931 | 85 709 1137 Wait 91 | . 55 36 Move 1603 | 54 560 989 Hop . | . . . Pick Up 52 | 13 19 20 Fast Attach 1 | . 1 . Attach 18 | 8 4 6 Detach 2 | 1 . 1 Swap 16 | . 3 13 Drop 21 | . 10 11 Fire 125 | 9 55 61 Melee . | . . . Ram . | . . . Kick . | . . . Crush 2 | . 2 . Escape Stasis . | . . . Rewire . | . . . Trap . | . . . Miscellaneous . | . . . Route ------- -11/Scrapyard -10/Materials (discovered 6 exits: *Mat x3 / [*Min x2] / *Sub) -10/Subcaves (discovered 3 exits: *Mat x2 / Rec) History --------- Turn | Location | Event 24 | -11/Scrapyard | Discovered new exit (range 16) 128 | -11/Scrapyard | Entered Materials 201 | -10/Materials | Discovered new exit (range 6) 293 | -10/Materials | Discovered new exit (range 10) 300 | -10/Materials | Build established: Mutant 774 | -10/Materials | Discovered new exit (range 13) 828 | -10/Materials | Derelicts attacked the area 950 | -10/Materials | Identified exit to Materials 1043 | -10/Materials | Learned location of 2 exits from Subcaves 1078 | -10/Materials | Identified exit to Subcaves 1104 | -10/Materials | Learned 2 Storage zone layouts 1122 | -10/Materials | Learned 2 Materials zone layouts 1150 | -10/Materials | Learned 2 Storage zone layouts 1290 | -10/Materials | Discovered new exit (range 8) 1309 | -10/Materials | Entered Subcaves 1310 | -10/Subcaves | Identified exit to Materials 1310 | -10/Subcaves | Identified exit to Recycling 1320 | -10/Subcaves | Core integrity fell below 50% 1448 | -10/Subcaves | Shifting Twisted Machinery released Sub. Beam Cannon 1517 | -10/Subcaves | Disturbed a concealed Subdweller 1519 | -10/Subcaves | Core integrity fell below 20% 1870 | -10/Subcaves | A swath of the cavern ceiling suddenly collapsed 2539 | -10/Subcaves | Learned Materials non-interactive machine intel 2886 | -10/Subcaves | Shifting Twisted Machinery released Sub. Monowheel 3192 | -10/Subcaves | Shifting Twisted Machinery released Battle Rifle 3389 | -10/Subcaves | Shifting Twisted Machinery released Battle Cannon 3577 | -10/Subcaves | Destroyed by Z0-VDA(R) with Subdweller Machine Gun Last Messages --------------- 02627_ Sub. Beam Cannon shoots sparks and powers down. 02627_ Destroyed Lgt. Ion Engine. 02631_ S-10 Pest destroyed. 02634_ Switching to secondary target: S-10 Pest. 02634_ S-10 Pest destroyed. 02639_ Acquired Flight Unit. 02642_ Lgt. Assault Rifle fries itself beyond repair. 02650_ Lgt. Ion Engine fries itself beyond repair. 02657_ Acquired 4 matter. 02664_ Subatomizers dissect the Disposable Heat Sink. Sub. Monowheel falls loose from the Twisted Machinery. 02994_ Acquired 1 matter. 02996_ Acquired 17 matter. 02998_ Acquired 6 matter. Battle Rifle falls loose from the Twisted Machinery. 03211_ Acquired Battle Rifle. Battle Cannon falls loose from the Twisted Machinery. 03561_ Wheel destroyed. 03563_ Critical hit (Destroy). 03563_ Battle Rifle destroyed. Map ----- +----------------------------------------------------+ | | | ??????????????????????????????????????????? | | ??????????????????????????????????????????? | | ??????????????????????????????????????????? | | ??????????????????????????????????????????? | | ??????????????????????????????????????????? | | ??????????????????????????????????????????? | | ??????????????????????????????????????????? | | ??????????????????????????????????????????? | | ??????????????????????????????????????????? | | ??????????????????????????????????????????? | | ??????????????????????????????????????????? | | ??????????????????????????????????????????? | | ??????????????????????????????????????????? | | ??????????????????????????????????????????? | | ??????????????????????????????????????????? | | ??????????????????????????????????????????? | | ??????????????????????##????????????????### | | ?????????????###??#### ######??????????## | | ?????????????#"& ##< # ##?????????# | | ???????????????# #?????????# | | ??????????????????#R #??????????## | | ?????????????????## # #???????????### | | ????????????????## ###????????????????? | | ????????????????# ##??????????????????? | | ????????????????# @ #####?????????????????? | | ????????????????## ## #?????????????????? | | ????????????????## # #?????????????????? | | ????????????????# #?????????????????? | | ????????????????## #??????? ?????? | | ???????????????## ##???? ?????? | | ???????????????# ####?# ?????? | | ???????????????# #?# ?????? | | ???????????????## #?# ?????? | | ????????????????#### ]##?# ##???# | | ???????????????????## "#???" ##?## | | ????????????????????# "#????? ### | | ????????????????????# "#??????# ## | | ???????????????####?# "#???????# ## | | ???????????????# ### ##???????# ## | | ???????????????# ## ######???# " | | ???????????????# "##?## " | | ???????????????# ""### " | | ???????????????# """"" " | | ???????????????# ### """"" "" | | ???????????????# ### """"" "" | | ???????????????# #### """"" "" | | ???????????????# ######### "" # | | ???????????????## #####?## "" ## | | ????????????????## ##?## " ## | +----------------------------------------------------+ Best States ------------- Heat Dissipation 25 Energy Generation 15 Energy Capacity 250 Matter Stores 300 Matter Capacity 300 Sight Range 16 Terrain Scan Density 10 Evasion (%) 40 Recoil Reduction 2 Item Schematics ----------------- Med. Storage Unit | -10/Materials | Hacked Robot Schematics ------------------ None Fabricated ------------ Nothing Repaired ---------- Nothing Studied --------- None Alien Tech Used ----------------- None Achievements -------------- None Challenges ------------ None Game ------ Seed ShiftHoverCanceller Manual? 0 Play Time 00:15:18 Cumulative 218.9 hours Start 2026.01.02 @ 14:49:34 End 2026.01.02 @ 15:03:56 Sessions 1 Manual Loads 0 Difficulty Rogue Special Mode None Game No. 306 Rogue 306 Adventurer 0 Explorer 0 Win Type - Total 3 Types 2/0/0/1/0/0/0/0/0/0 Lore% 74 Gallery% 74 Achievement% 50 Wizard Run 0 Options --------- Layout 0 ASCII 0 Keyboard 0 Movement Mouse Keybinds 0 Fullscreen 1 Font 16/SmallcapsGlow Map View 75x55 Zoom Use 0% Tactical HUD 1 Map Filters NONE Filters NONE Steam 1 RUN: ff342779-12c2-4df3-9fb7-451358d0899a